[Event "Mitropa Online Cup Open 2021"]
[Site "Hybrid"]
[Date "2021.05.04"]
[Round "2.8"]
[White "Droin, Augustin"]
[Black "Csiki, Endre"]
[Result "1/2-1/2"]
[ECO "C92"]
[WhiteElo "2292"]
[BlackElo "2310"]
[Annotator "NA"]
[PlyCount "138"]
[EventDate "2021.05.04"]
[EventType "team-tourn"]
[EventCountry "NET"]
[SourceTitle "playchess.com"]
[Source "ChessBase"]
[SourceQuality "1"]
[WhiteTeam "France"]
[BlackTeam "Hungary"]
[WhiteTeamCountry "FRA"]
[BlackTeamCountry "HUN"]
[TimeControl "40/5400+30:1800+30"]

1. e4 {[%emt 0:00:00]} e5 {[%emt 0:00:07]} 2. Nf3 {[%emt 0:00:07]} Nc6 {[%emt 0:00:05]} 3. Bb5 {[%emt 0:00:07]} a6 {[%emt 0:00:04]} 4. Ba4 {[%emt 0:00:05]} Nf6 {[%emt 0:00:04]} 5. O-O {[%emt 0:00:05]} Be7 {[%emt 0:00:06]} 6. Re1 {[%emt 0:00:05]} b5 {[%emt 0:00:05]} 7. Bb3 {[%emt 0:00:05]} d6 {[%emt 0:00:04]} 8. c3 {[%emt 0:00:07]} O-O {[%emt 0:00:04]} 9. h3 {[%emt 0:00:22]} Re8 {[%emt 0:00:06]} 10. d4 {[%emt 0:01:12]} Bb7 {[%emt 0:00:05]} 11. Nbd2 {[%emt 0:00:12]} Bf8 {[%emt 0:00:09]} 12. a3 {[%emt 0:00:10]} g6 {[%emt 0:00:06]} 13. Ba2 {[%emt 0:00:17]} Bg7 {[%emt 0:00:15]} 14. Qc2 {[%emt 0:00:15]} Nh5 {[%emt 0:22:16]} 15. Nb3 {[%emt 0:10:12]} a5 {[%emt 0:04:02]} 16. Be3 {[%emt 0:00:47]} a4 {[%emt 0:02:50]} 17. Nbd2 {[%emt 0:00:15]} h6 {[%emt 0:16:13]} 18. Rac1 {[%emt 0:08:28]} Na5 {[%emt 0:08:40]} 19. dxe5 {[%emt 0:04:40]} dxe5 {[%emt 0:00:39]} 20. c4 {[%emt 0:02:11]} bxc4 {[%emt 0:09:00]} 21. Qxa4 {[%emt 0:05:03]} Nb3 {[%emt 0:17:10]} 22. Qxc4 {[%emt 0:01:32]} Nxc1 {[%emt 0:00:19]} 23. Qxf7+ {[%emt 0:00:46]} Kh7 {[%emt 0:00:07]} 24. Rxc1 {[%emt 0:00:49]} Re7 {[%emt 0:00:14]} 25. Qb3 {[%emt 0:03:09]} Ba6 {[%emt 0:04:21]} 26. Nc4 {[%emt 0:10:32]} Nf4 {[%emt 0:02:48]} 27. Bxf4 {[%emt 0:01:06]} exf4 {[%emt 0:00:14]} 28. Qc2 {[%emt 0:00:12]} Qb8 {[%emt 0:07:44]} 29. e5 {[%emt 0:03:01]} Bxc4 {[%emt 0:01:34]} 30. Bxc4 {[%emt 0:00:04]} Bxe5 {[%emt 0:02:53]} 31. Nxe5 {[%emt 0:00:16]} Rxe5 {[%emt 0:00:31]} 32. Bf7 {[%emt 0:08:02]} Qb6 {[%emt 0:00:51]} 33. Qxc7 {[%emt 0:00:56]} Qxc7 {[%emt 0:00:16]} 34. Rxc7 {[%emt 0:00:03]} Rb8 {[%emt 0:00:24]} 35. b4 {[%emt 0:00:38]} Re1+ {[%emt 0:00:46]} 36. Kh2 {[%emt 0:00:05]} Ra1 {[%emt 0:00:09]} 37. Ra7 {[%emt 0:00:45]} Kg7 {[%emt 0:01:04]} 38. Bc4+ {[%emt 0:07:09]} Kf6 {[%emt 0:00:11]} 39. Ra6+ {[%emt 0:00:05]} Ke5 {[%emt 0:00:20]} 40. Be2 {[%emt 0:00:00]} Rc8 {[%emt 0:00:00]} 41. Ra5+ {[%emt 0:11:00]} Kd4 {[%emt 0:15:50]} 42. Bf3 {[%emt 0:00:45]} Rcc1 {[%emt 0:03:05]} 43. Rd5+ {[%emt 0:01:12]} Kc3 {[%emt 0:02:36]} 44. Rc5+ {[%emt 0:00:06]} Kb2 {[%emt 0:00:47]} 45. Rxc1 {[%emt 0:00:08]} Kxc1 {[%emt 0:00:01]} 46. b5 {[%emt 0:01:15]} Rxa3 {[%emt 0:00:12]} 47. b6 {[%emt 0:00:20]} Rb3 {[%emt 0:00:06]} 48. b7 {[%emt 0:00:05]} Kd2 {[%emt 0:05:35]} 49. g3 {[%emt 0:01:09]} Ke1 {[%emt 0:00:58]} 50. Kg2 {[%emt 0:01:01]} fxg3 {[%emt 0:00:34]} 51. fxg3 {[%emt 0:00:43]} Rb2+ {[%emt 0:00:25]} 52. Kg1 {[%emt 0:00:05]} Kd2 {[%emt 0:01:38]} 53. h4 {[%emt 0:04:03]} Ke3 {[%emt 0:00:08]} 54. Bc6 {[%emt 0:00:06]} Kd4 {[%emt 0:02:49]} 55. Kf1 {[%emt 0:00:11]} Ke5 {[%emt 0:00:31]} 56. Bf3 {[%emt 0:00:06]} Kf5 {[%emt 0:00:19]} 57. Kg1 {[%emt 0:00:08]} g5 {[%emt 0:02:31]} 58. hxg5 {[%emt 0:00:05]} hxg5 {[%emt 0:00:28]} 59. Kf1 {[%emt 0:00:05]} Ke5 {[%emt 0:00:14]} 60. Kg1 {[%emt 0:00:06]} Kd4 {[%emt 0:00:16]} 61. Bc6 {[%emt 0:00:05]} Ke3 {[%emt 0:00:06]} 62. Bd5 {[%emt 0:00:12]} Kd4 {[%emt 0:00:42]} 63. Bc6 {[%emt 0:00:11]} Ke5 {[%emt 0:00:09]} 64. Bf3 {[%emt 0:00:10]} Rb3 {[%emt 0:00:17]} 65. Kf2 {[%emt 0:00:26]} Kf5 {[%emt 0:00:44]} 66. Kg1 {[%emt 0:00:11]} g4 {[%emt 0:01:49]} 67. Bg2 {[%emt 0:00:11]} Rb2 {[%emt 0:00:15]} 68. Bc6 {[%emt 0:00:09]} Ke5 {[%emt 0:00:19]} 69. Bg2 {[%emt 0:00:08]} Kd4 {[%emt 0:00:04]} 1/2-1/2

[Event "Mitropa Online Cup Open 2021"]
[Site "Hybrid"]
[Date "2021.05.04"]
[Round "2.9"]
[White "Gazik, Viktor"]
[Black "Moroni, Luca Jr"]
[Result "1/2-1/2"]
[ECO "C44"]
[WhiteElo "2542"]
[BlackElo "2557"]
[Annotator "ChessBase"]
[PlyCount "145"]
[EventDate "2021.05.04"]
[EventType "team-tourn"]
[EventCountry "NET"]
[SourceTitle "playchess.com"]
[Source "ChessBase"]
[SourceQuality "1"]
[WhiteTeam "Slovakia"]
[BlackTeam "Italy"]
[WhiteTeamCountry "SVK"]
[BlackTeamCountry "ITA"]
[TimeControl "40/5400+30:1800+30"]

1. e4 {[%emt 0:00:00]} e5 {[%emt 0:00:04]} 2. Nf3 {[%emt 0:00:04]} Nc6 {[%emt 0:00:05]} 3. d4 {[%emt 0:00:02]} exd4 {[%emt 0:00:17]} 4. c3 {[%emt 0:00:06]} Nf6 {[%emt 0:12:08]} 5. e5 {[%emt 0:00:12]} Ne4 {[%emt 0:00:57]} 6. Qe2 {[%emt 0:05:09]} d5 {[%emt 0:18:44]} 7. exd6 {[%emt 0:00:51]} f5 {[%emt 0:01:32]} 8. Nbd2 {[%emt 0:29:31]} Qxd6 {[%emt 0:09:34]} 9. Nxe4 {[%emt 0:07:14]} fxe4 {[%emt 0:00:05]} 10. Qxe4+ {[%emt 0:00:05]} Qe6 {[%emt 0:02:55]} 11. Bd3 {[%emt 0:00:27]} dxc3 {[%emt 0:07:00]} 12. bxc3 {[%emt 0:02:08]} Qxe4+ {[%emt 0:03:59]} 13. Bxe4 {[%emt 0:00:26]} Bd7 {[%emt 0:00:42]} 14. Bg5 {[%emt 0:03:56]} Be7 {[%emt 0:08:12]} 15. O-O {[%emt 0:09:37]} Bxg5 {[%emt 0:05:35]} 16. Nxg5 {[%emt 0:00:19]} h6 {[%emt 0:01:33]} 17. Rfe1 {[%emt 0:04:51]} O-O {[%emt 0:02:11]} 18. Rad1 {[%emt 0:04:39]} Bg4 {[%emt 0:02:38]} 19. f3 {[%emt 0:00:51]} Bf5 {[%emt 0:08:37]} 20. Bd5+ {[%emt 0:10:08]} Kh8 {[%emt 0:00:10]} 21. Nf7+ {[%emt 0:10:56]} Kh7 {[%emt 0:00:07]} 22. Bxc6 {[%emt 0:00:13]} bxc6 {[%emt 0:00:56]} 23. Re7 {[%emt 0:00:34]} Rfe8 {[%emt 0:04:48]} 24. Rxc7 {[%emt 0:02:11]} Re2 {[%emt 0:00:50]} 25. Nd6 {[%emt 0:01:14]} Bg6 {[%emt 0:02:32]} 26. h4 {[%emt 0:00:09]} h5 {[%emt 0:02:53]} 27. Nf7 {[%emt 0:03:41]} Bxf7 {[%emt 0:02:31]} 28. Rxf7 {[%emt 0:00:04]} Rxa2 {[%emt 0:00:34]} 29. Rdd7 {[%emt 0:00:22]} Rg8 {[%emt 0:00:08]} 30. Rf5 {[%emt 0:00:27]} Kh6 {[%emt 0:00:50]} 31. Rd6+ {[%emt 0:03:45]} g6 {[%emt 0:00:08]} 32. Rff6 {[%emt 0:01:13]} Rg7 {[%emt 0:01:21]} 33. Rxc6 {[%emt 0:00:16]} a5 {[%emt 0:00:15]} 34. Kh2 {[%emt 0:00:40]} Kh7 {[%emt 0:01:11]} 35. Ra6 {[%emt 0:00:17]} Ra4 {[%emt 0:00:11]} 36. Kg3 {[%emt 0:00:34]} Rc4 {[%emt 0:00:17]} 37. Rxa5 {[%emt 0:00:05]} Rxc3 {[%emt 0:00:06]} 38. Ra8 {[%emt 0:00:32]} Rcc7 {[%emt 0:00:26]} 39. Rff8 {[%emt 0:00:10]} Kh6 {[%emt 0:00:10]} 40. Kh3 {[%emt 0:00:00]} Rgf7 {[%emt 0:00:00]} 41. Rh8+ {[%emt 0:00:38]} Rh7 {[%emt 0:00:42]} 42. Rhb8 {[%emt 0:05:01]} Rb7 {[%emt 0:00:09]} 43. g4 {[%emt 0:00:50]} hxg4+ {[%emt 0:00:29]} 44. fxg4 {[%emt 0:00:05]} Rhc7 {[%emt 0:02:50]} 45. g5+ {[%emt 0:02:19]} Kg7 {[%emt 0:00:26]} 46. Rxb7 {[%emt 0:01:18]} Rxb7 {[%emt 0:00:20]} 47. Ra4 {[%emt 0:00:07]} Rc7 {[%emt 0:00:40]} 48. Kg4 {[%emt 0:00:10]} Rf7 {[%emt 0:00:03]} 49. Rf4 {[%emt 0:00:06]} Ra7 {[%emt 0:02:45]} 50. Kf3 {[%emt 0:00:09]} Ra3+ {[%emt 0:00:50]} 51. Ke4 {[%emt 0:00:05]} Ra5 {[%emt 0:00:40]} 52. Ke3 {[%emt 0:00:12]} Ra3+ {[%emt 0:00:11]} 53. Kd4 {[%emt 0:00:06]} Ra5 {[%emt 0:00:57]} 54. Kc3 {[%emt 0:00:04]} Rc5+ {[%emt 0:00:31]} 55. Rc4 {[%emt 0:00:18]} Rf5 {[%emt 0:00:37]} 56. Re4 {[%emt 0:00:21]} Ra5 {[%emt 0:00:12]} 57. Kd4 {[%emt 0:00:37]} Kf7 {[%emt 0:00:25]} 58. Kc4 {[%emt 0:00:32]} Kg7 {[%emt 0:00:07]} 59. Re7+ {[%emt 0:00:13]} Kg8 {[%emt 0:00:17]} 60. Kd4 {[%emt 0:00:06]} Ra4+ {[%emt 0:02:01]} 61. Ke5 {[%emt 0:00:16]} Rxh4 {[%emt 0:00:04]} 62. Kf6 {[%emt 0:00:03]} Rf4+ {[%emt 0:01:08]} 63. Kxg6 {[%emt 0:00:04]} Rf8 {[%emt 0:00:02]} 64. Rg7+ {[%emt 0:00:32]} Kh8 {[%emt 0:00:03]} 65. Rf7 {[%emt 0:00:02]} Ra8 {[%emt 0:00:03]} 66. Kh6 {[%emt 0:00:05]} Kg8 {[%emt 0:00:19]} 67. Rd7 {[%emt 0:00:04]} Rb8 {[%emt 0:00:06]} 68. g6 {[%emt 0:00:03]} Ra8 {[%emt 0:00:09]} 69. Rd6 {[%emt 0:00:02]} Rb8 {[%emt 0:00:09]} 70. g7 {[%emt 0:00:02]} Ra8 {[%emt 0:00:11]} 71. Kg6 {[%emt 0:00:02]} Ra6 {[%emt 0:00:07]} 72. Rf6 {[%emt 0:00:02]} Rb6 {[%emt 0:00:20]} 73. Rxb6 {[%emt 0:00:07]} 1/2-1/2

[Event "Mitropa Online Cup Open 2021"]
[Site "Hybrid"]
[Date "2021.05.04"]
[Round "2.10"]
[White "Basso, Pier Luigi"]
[Black "Druska, Juraj"]
[Result "1-0"]
[ECO "D37"]
[WhiteElo "2552"]
[BlackElo "2494"]
[Annotator "ChessBase"]
[PlyCount "83"]
[EventDate "2021.05.04"]
[EventType "team-tourn"]
[EventCountry "NET"]
[SourceTitle "playchess.com"]
[Source "ChessBase"]
[SourceQuality "1"]
[WhiteTeam "Italy"]
[BlackTeam "Slovakia"]
[WhiteTeamCountry "ITA"]
[BlackTeamCountry "SVK"]
[TimeControl "40/5400+30:1800+30"]

1. d4 {[%emt 0:00:00]} d5 {[%emt 0:00:18]} 2. c4 {[%emt 0:00:27]} e6 {[%emt 0:00:09]} 3. Nc3 {[%emt 0:00:45]} Nf6 {[%emt 0:00:22]} 4. Nf3 {[%emt 0:00:31]} a6 {[%emt 0:00:50]} 5. cxd5 {[%emt 0:00:43]} exd5 {[%emt 0:00:07]} 6. Bg5 {[%emt 0:02:09]} Be6 {[%emt 0:00:18]} 7. Bxf6 {[%emt 0:00:43]} Qxf6 {[%emt 0:00:06]} 8. Qb3 {[%emt 0:00:08]} Ra7 {[%emt 0:00:09]} 9. a3 {[%emt 0:01:13]} Qd8 {[%emt 0:03:23]} 10. Qc2 {[%emt 0:01:25]} Be7 {[%emt 0:11:50]} 11. e4 {[%emt 0:04:26]} c6 {[%emt 0:28:59]} 12. e5 {[%emt 0:06:19]} Nd7 {[%emt 0:03:09]} 13. Bd3 {[%emt 0:02:48]} h6 {[%emt 0:14:50]} 14. O-O {[%emt 0:02:01]} O-O {[%emt 0:04:22]} 15. h3 {[%emt 0:16:51]} c5 {[%emt 0:14:38]} 16. dxc5 {[%emt 0:02:31]} Bxc5 {[%emt 0:07:55]} 17. Rad1 {[%emt 0:02:31]} Nb6 {[%emt 0:04:16]} 18. Nxd5 {[%emt 0:14:07]} Nxd5 {[%emt 0:00:14]} 19. Qxc5 {[%emt 0:02:08]} b6 {[%emt 0:00:06]} 20. Qd4 {[%emt 0:01:51]} Rd7 {[%emt 0:00:51]} 21. Qe4 {[%emt 0:00:30]} g6 {[%emt 0:00:04]} 22. Bxa6 {[%emt 0:05:27]} Nc3 {[%emt 0:00:39]} 23. Rxd7 {[%emt 0:01:15]} Nxe4 {[%emt 0:00:03]} 24. Rxd8 {[%emt 0:00:04]} Rxd8 {[%emt 0:00:06]} 25. Rc1 {[%emt 0:04:28]} Nd2 {[%emt 0:01:25]} 26. Nxd2 {[%emt 0:01:32]} Rxd2 {[%emt 0:00:05]} 27. b4 {[%emt 0:00:21]} Ra2 {[%emt 0:00:51]} 28. Rc3 {[%emt 0:01:45]} g5 {[%emt 0:00:43]} 29. Bc8 {[%emt 0:05:53]} Bd5 {[%emt 0:02:20]} 30. Re3 {[%emt 0:00:11]} Kg7 {[%emt 0:01:20]} 31. e6 {[%emt 0:00:35]} fxe6 {[%emt 0:00:05]} 32. Bxe6 {[%emt 0:00:04]} Bxe6 {[%emt 0:00:06]} 33. Rxe6 {[%emt 0:00:03]} Rxa3 {[%emt 0:00:07]} 34. Rxb6 {[%emt 0:00:07]} Rb3 {[%emt 0:01:01]} 35. Rb7+ {[%emt 0:00:37]} Kf6 {[%emt 0:00:25]} 36. b5 {[%emt 0:00:13]} h5 {[%emt 0:00:08]} 37. h4 {[%emt 0:11:56]} gxh4 {[%emt 0:01:08]} 38. Kh2 {[%emt 0:00:20]} Rb2 {[%emt 0:00:50]} 39. f3 {[%emt 0:00:11]} Rb1 {[%emt 0:00:10]} 40. b6 {[%emt 0:00:00]} Kg6 {[%emt 0:00:00]} 41. Rb8 {[%emt 0:00:29]} Kg7 {[%emt 0:03:55]} 42. b7 {[%emt 0:01:08]} 1-0

[Event "Mitropa Online Cup Open 2021"]
[Site "Hybrid"]
[Date "2021.05.04"]
[Round "2.11"]
[White "Nayhebaver, Martin"]
[Black "Brunello, Sabino"]
[Result "1-0"]
[ECO "C80"]
[WhiteElo "2485"]
[BlackElo "2519"]
[Annotator "ChessBase"]
[PlyCount "81"]
[EventDate "2021.05.04"]
[EventType "team-tourn"]
[EventCountry "NET"]
[SourceTitle "playchess.com"]
[Source "ChessBase"]
[SourceQuality "1"]
[WhiteTeam "Slovakia"]
[BlackTeam "Italy"]
[WhiteTeamCountry "SVK"]
[BlackTeamCountry "ITA"]
[TimeControl "40/5400+30:1800+30"]

1. e4 {[%emt 0:00:00]} e5 {[%emt 0:00:16]} 2. Nf3 {[%emt 0:00:16]} Nc6 {[%emt 0:00:19]} 3. Bb5 {[%emt 0:00:20]} a6 {[%emt 0:00:17]} 4. Ba4 {[%emt 0:00:15]} Nf6 {[%emt 0:00:25]} 5. O-O {[%emt 0:00:23]} Nxe4 {[%emt 0:00:24]} 6. d4 {[%emt 0:01:12]} b5 {[%emt 0:00:07]} 7. Bb3 {[%emt 0:00:06]} d5 {[%emt 0:00:03]} 8. dxe5 {[%emt 0:00:24]} Be6 {[%emt 0:00:04]} 9. Nbd2 {[%emt 0:02:05]} Nc5 {[%emt 0:27:30]} 10. c3 {[%emt 0:00:42]} d4 {[%emt 0:04:02]} 11. Ng5 {[%emt 0:09:55]} Qxg5 {[%emt 0:19:38]} 12. Qf3 {[%emt 0:00:17]} Kd7 {[%emt 0:06:30]} 13. Bd5 {[%emt 0:07:46]} Bxd5 {[%emt 0:16:32]} 14. Qxd5+ {[%emt 0:00:18]} Bd6 {[%emt 0:00:04]} 15. Nc4 {[%emt 0:24:56]} Qg6 {[%emt 0:16:36]} 16. exd6 {[%emt 0:01:00]} bxc4 {[%emt 0:01:25]} 17. Qxc5 {[%emt 0:00:37]} cxd6 {[%emt 0:00:36]} 18. Qxc4 {[%emt 0:00:24]} Qe6 {[%emt 0:00:09]} 19. Qa4 {[%emt 0:02:13]} Rhe8 {[%emt 0:01:47]} 20. cxd4 {[%emt 0:03:18]} Qd5 {[%emt 0:00:54]} 21. Be3 {[%emt 0:02:33]} f5 {[%emt 0:01:27]} 22. Rfc1 {[%emt 0:10:02]} Re4 {[%emt 0:00:36]} 23. g3 {[%emt 0:01:21]} g5 {[%emt 0:01:01]} 24. Bxg5 {[%emt 0:02:21]} f4 {[%emt 0:00:08]} 25. Bxf4 {[%emt 0:12:53]} Rxf4 {[%emt 0:00:06]} 26. Rxc6 {[%emt 0:01:12]} Qxc6 {[%emt 0:00:22]} 27. Qxc6+ {[%emt 0:00:06]} Kxc6 {[%emt 0:00:02]} 28. gxf4 {[%emt 0:00:35]} Rg8+ {[%emt 0:00:06]} 29. Kf1 {[%emt 0:00:58]} Kd5 {[%emt 0:00:30]} 30. Ke2 {[%emt 0:00:44]} Ke4 {[%emt 0:01:22]} 31. Rc1 {[%emt 0:00:43]} Rg2 {[%emt 0:00:34]} 32. Rc6 {[%emt 0:00:38]} Rxh2 {[%emt 0:00:09]} 33. Rxd6 {[%emt 0:00:54]} a5 {[%emt 0:00:07]} 34. Re6+ {[%emt 0:06:36]} Kxd4 {[%emt 0:00:57]} 35. Kf3 {[%emt 0:00:20]} h5 {[%emt 0:00:17]} 36. Rd6+ {[%emt 0:01:33]} Kc5 {[%emt 0:00:11]} 37. Rd2 {[%emt 0:00:58]} Rh3+ {[%emt 0:00:34]} 38. Ke4 {[%emt 0:00:19]} Rh1 {[%emt 0:00:07]} 39. f5 {[%emt 0:00:30]} h4 {[%emt 0:00:05]} 40. f6 {[%emt 0:00:00]} h3 {[%emt 0:00:00]} 41. f7 {[%emt 0:00:26]} 1-0

[Event "Mitropa Online Cup Open 2021"]
[Site "Hybrid"]
[Date "2021.05.04"]
[Round "2.12"]
[White "Sonis, Francesco"]
[Black "Haring, Filip"]
[Result "1-0"]
[ECO "A67"]
[WhiteElo "2493"]
[BlackElo "2376"]
[Annotator "ChessBase"]
[PlyCount "71"]
[EventDate "2021.05.04"]
[EventType "team-tourn"]
[EventCountry "NET"]
[SourceTitle "playchess.com"]
[Source "ChessBase"]
[SourceQuality "1"]
[WhiteTeam "Italy"]
[BlackTeam "Slovakia"]
[WhiteTeamCountry "ITA"]
[BlackTeamCountry "SVK"]
[TimeControl "40/5400+30:1800+30"]

1. d4 {[%emt 0:00:00]} Nf6 {[%emt 0:00:06]} 2. c4 {[%emt 0:00:04]} c5 {[%emt 0:00:09]} 3. d5 {[%emt 0:00:15]} e6 {[%emt 0:00:11]} 4. Nc3 {[%emt 0:00:03]} exd5 {[%emt 0:00:13]} 5. cxd5 {[%emt 0:00:04]} d6 {[%emt 0:00:11]} 6. e4 {[%emt 0:00:04]} g6 {[%emt 0:00:10]} 7. f4 {[%emt 0:00:08]} Bg7 {[%emt 0:00:09]} 8. Bb5+ {[%emt 0:00:04]} Nfd7 {[%emt 0:00:10]} 9. a4 {[%emt 0:00:05]} Na6 {[%emt 0:00:11]} 10. Nf3 {[%emt 0:00:23]} Nb4 {[%emt 0:00:17]} 11. O-O {[%emt 0:00:05]} a6 {[%emt 0:00:15]} 12. Be2 {[%emt 0:00:36]} O-O {[%emt 0:00:25]} 13. Be3 {[%emt 0:01:16]} Nf6 {[%emt 0:00:22]} 14. Nd2 {[%emt 0:00:27]} Rb8 {[%emt 0:01:19]} 15. Bf2 {[%emt 0:03:51]} b5 {[%emt 0:04:55]} 16. axb5 {[%emt 0:02:39]} axb5 {[%emt 0:00:24]} 17. Bh4 {[%emt 0:06:17]} Qe8 {[%emt 0:04:43]} 18. Kh1 {[%emt 0:08:40]} c4 {[%emt 0:11:53]} 19. Ra7 {[%emt 0:13:29]} Bb7 {[%emt 0:30:36]} 20. Ra5 {[%emt 0:11:11]} Ba8 {[%emt 0:04:27]} 21. b3 {[%emt 0:07:27]} Ng4 {[%emt 0:15:02]} 22. Bxg4 {[%emt 0:09:56]} Bxc3 {[%emt 0:00:18]} 23. bxc4 {[%emt 0:05:06]} Bxd2 {[%emt 0:16:05]} 24. Qxd2 {[%emt 0:00:20]} bxc4 {[%emt 0:00:04]} 25. Bf3 {[%emt 0:01:31]} f6 {[%emt 0:02:34]} 26. Rxa8 {[%emt 0:05:19]} Rxa8 {[%emt 0:00:47]} 27. Qxb4 {[%emt 0:00:04]} g5 {[%emt 0:02:41]} 28. fxg5 {[%emt 0:01:32]} fxg5 {[%emt 0:00:08]} 29. Bxg5 {[%emt 0:00:04]} Qxe4 {[%emt 0:00:43]} 30. h3 {[%emt 0:00:53]} Qe5 {[%emt 0:01:48]} 31. Bc1 {[%emt 0:07:17]} c3 {[%emt 0:00:51]} 32. Qh4 {[%emt 0:01:44]} Ra1 {[%emt 0:01:40]} 33. Re1 {[%emt 0:00:34]} Qg7 {[%emt 0:01:58]} 34. Bg4 {[%emt 0:04:52]} c2 {[%emt 0:00:34]} 35. Kh2 {[%emt 0:00:38]} Qc3 {[%emt 0:00:39]} 36. Re7 {[%emt 0:00:22]} 1-0

[Event "Mitropa Online Cup Open 2021"]
[Site "Hybrid"]
[Date "2021.05.04"]
[Round "2.13"]
[White "Babula, Vlastimil"]
[Black "Sebenik, Matej"]
[Result "1/2-1/2"]
[ECO "E92"]
[WhiteElo "2559"]
[BlackElo "2498"]
[Annotator "ChessBase"]
[PlyCount "66"]
[EventDate "2021.05.04"]
[EventType "team-tourn"]
[EventCountry "NET"]
[SourceTitle "playchess.com"]
[Source "ChessBase"]
[SourceQuality "1"]
[WhiteTeam "Czech Republic"]
[BlackTeam "Slovenia"]
[WhiteTeamCountry "CZE"]
[BlackTeamCountry "SLO"]
[TimeControl "40/5400+30:1800+30"]

1. d4 {[%emt 0:00:00]} Nf6 {[%emt 0:00:09]} 2. c4 {[%emt 0:00:19]} g6 {[%emt 0:00:23]} 3. Nc3 {[%emt 0:01:08]} Bg7 {[%emt 0:00:12]} 4. e4 {[%emt 0:03:22]} d6 {[%emt 0:00:09]} 5. Nf3 {[%emt 0:00:32]} O-O {[%emt 0:00:09]} 6. Be2 {[%emt 0:00:21]} e5 {[%emt 0:00:47]} 7. d5 {[%emt 0:00:57]} Na6 {[%emt 0:01:56]} 8. Nd2 {[%emt 0:01:27]} c6 {[%emt 0:00:13]} 9. Rb1 {[%emt 0:10:55]} Bd7 {[%emt 0:01:21]} 10. b4 {[%emt 0:07:50]} cxd5 {[%emt 0:17:24]} 11. exd5 {[%emt 0:13:42]} Ne8 {[%emt 0:21:49]} 12. O-O {[%emt 0:06:31]} f5 {[%emt 0:00:55]} 13. a4 {[%emt 0:19:00]} e4 {[%emt 0:09:10]} 14. Nb5 {[%emt 0:00:38]} Nac7 {[%emt 0:06:54]} 15. f4 {[%emt 0:06:42]} Bxb5 {[%emt 0:13:52]} 16. axb5 {[%emt 0:00:48]} a6 {[%emt 0:00:15]} 17. bxa6 {[%emt 0:05:41]} Nxa6 {[%emt 0:00:08]} 18. Kh1 {[%emt 0:01:00]} Qe7 {[%emt 0:03:52]} 19. Rb3 {[%emt 0:03:09]} Kh8 {[%emt 0:02:35]} 20. Nb1 {[%emt 0:00:59]} Nac7 {[%emt 0:04:14]} 21. Be3 {[%emt 0:03:24]} Ra1 {[%emt 0:06:07]} 22. Ra3 {[%emt 0:03:25]} Rxa3 {[%emt 0:00:21]} 23. Nxa3 {[%emt 0:00:09]} Nf6 {[%emt 0:00:27]} 24. Qb3 {[%emt 0:01:49]} Ra8 {[%emt 0:01:08]} 25. h3 {[%emt 0:04:16]} h5 {[%emt 0:01:42]} 26. Rd1 {[%emt 0:00:44]} Qd7 {[%emt 0:01:38]} 27. Bb6 {[%emt 0:00:53]} Qc8 {[%emt 0:01:41]} 28. Nc2 {[%emt 0:01:05]} Nd7 {[%emt 0:01:04]} 29. Bf2 {[%emt 0:00:43]} Qf8 {[%emt 0:01:49]} 30. Nd4 {[%emt 0:01:59]} Nf6 {[%emt 0:00:15]} 31. Nc2 {[%emt 0:00:29]} Nd7 {[%emt 0:00:07]} 32. Nd4 {[%emt 0:00:25]} Nf6 {[%emt 0:00:03]} 33. Nc2 {[%emt 0:00:40]} Nd7 {[%emt 0:00:05]} 1/2-1/2

[Event "Mitropa Online Cup Open 2021"]
[Site "Hybrid"]
[Date "2021.05.04"]
[Round "2.15"]
[White "Kriebel, Tadeas"]
[Black "Spalir, Jernej"]
[Result "1-0"]
[ECO "C77"]
[WhiteElo "2527"]
[BlackElo "2389"]
[Annotator "ChessBase"]
[PlyCount "87"]
[EventDate "2021.05.04"]
[EventType "team-tourn"]
[EventCountry "NET"]
[SourceTitle "playchess.com"]
[Source "ChessBase"]
[SourceQuality "1"]
[WhiteTeam "Czech Republic"]
[BlackTeam "Slovenia"]
[WhiteTeamCountry "CZE"]
[BlackTeamCountry "SLO"]
[TimeControl "40/5400+30:1800+30"]

1. e4 {[%emt 0:00:00]} e5 {[%emt 0:00:07]} 2. Nf3 {[%emt 0:00:05]} Nc6 {[%emt 0:00:07]} 3. Bb5 {[%emt 0:00:07]} a6 {[%emt 0:00:08]} 4. Ba4 {[%emt 0:00:04]} Nf6 {[%emt 0:00:06]} 5. O-O {[%emt 0:00:06]} Be7 {[%emt 0:00:31]} 6. d3 {[%emt 0:00:15]} b5 {[%emt 0:00:11]} 7. Bb3 {[%emt 0:00:05]} d6 {[%emt 0:00:05]} 8. a3 {[%emt 0:00:09]} O-O {[%emt 0:00:07]} 9. Nc3 {[%emt 0:00:10]} Na5 {[%emt 0:01:35]} 10. Ba2 {[%emt 0:00:06]} Be6 {[%emt 0:00:05]} 11. b4 {[%emt 0:00:13]} Bxa2 {[%emt 0:00:07]} 12. Rxa2 {[%emt 0:01:32]} Nc6 {[%emt 0:00:07]} 13. Bg5 {[%emt 0:00:07]} Nd7 {[%emt 0:00:08]} 14. Be3 {[%emt 0:00:19]} Nf6 {[%emt 0:04:21]} 15. h3 {[%emt 0:04:45]} Re8 {[%emt 0:19:21]} 16. Re1 {[%emt 0:14:28]} h6 {[%emt 0:11:15]} 17. Qb1 {[%emt 0:00:10]} Qc8 {[%emt 0:03:04]} 18. Qb3 {[%emt 0:04:44]} Qb7 {[%emt 0:02:55]} 19. Rb1 {[%emt 0:06:48]} Nb8 {[%emt 0:05:08]} 20. a4 {[%emt 0:03:34]} c6 {[%emt 0:02:49]} 21. Rba1 {[%emt 0:04:25]} Nbd7 {[%emt 0:05:10]} 22. axb5 {[%emt 0:00:59]} cxb5 {[%emt 0:00:05]} 23. Nh4 {[%emt 0:02:07]} Nxe4 {[%emt 0:14:35]} 24. Qd5 {[%emt 0:04:14]} Qxd5 {[%emt 0:03:38]} 25. Nxd5 {[%emt 0:00:08]} Bxh4 {[%emt 0:00:07]} 26. dxe4 {[%emt 0:00:06]} Rec8 {[%emt 0:00:55]} 27. Rxa6 {[%emt 0:27:20]} Rxa6 {[%emt 0:00:34]} 28. Rxa6 {[%emt 0:00:06]} Rxc2 {[%emt 0:01:42]} 29. g3 {[%emt 0:02:59]} Bg5 {[%emt 0:01:50]} 30. Bxg5 {[%emt 0:00:05]} hxg5 {[%emt 0:00:03]} 31. Rxd6 {[%emt 0:00:05]} Nf6 {[%emt 0:11:00]} 32. Nxf6+ {[%emt 0:00:11]} gxf6 {[%emt 0:00:03]} 33. Rxf6 {[%emt 0:00:04]} Rc4 {[%emt 0:01:27]} 34. Rf5 {[%emt 0:00:08]} Rxe4 {[%emt 0:00:04]} 35. Rxg5+ {[%emt 0:00:14]} Kf8 {[%emt 0:00:36]} 36. Rg4 {[%emt 0:00:19]} Re1+ {[%emt 0:01:31]} 37. Kg2 {[%emt 0:00:30]} Rb1 {[%emt 0:02:15]} 38. h4 {[%emt 0:01:41]} Ke7 {[%emt 0:01:29]} 39. h5 {[%emt 0:00:39]} f5 {[%emt 0:00:05]} 40. h6 {[%emt 0:00:00]} fxg4 {[%emt 0:00:00]} 41. h7 {[%emt 0:01:48]} Rxb4 {[%emt 0:03:57]} 42. h8=Q {[%emt 0:00:06]} Ke6 {[%emt 0:00:02]} 43. Qg8+ {[%emt 0:00:26]} Kd7 {[%emt 0:00:20]} 44. Qd5+ {[%emt 0:00:06]} 1-0